bitfinex/quotes_ETHUSD_20240817
["timestamp","ask_amount","ask_price","bid_price","bid_amount"]
[1723875028757,0.87153294,2605.5,2605.4,10.10108]
[1723875028924,0.06541611,2605.5,2605.4,10.10108]
[1723875029133,0.87153294,2605.5,2605.4,10.10108]
[1723875031880,0.92178601,2605.5,2605.4,10.10108]
[1723875033865,0.92178601,2605.5,2605.4,7.67628]
[1723875037809,0.11566918,2605.5,2605.4,7.67628]
[1723875038109,0.92178601,2605.5,2605.4,7.67628]
[1723875041409,0.11566918,2605.5,2605.4,7.67628]
[1723875041986,1.32482986,2605.5,2605.4,7.67628]
[1723875042585,0.11566918,2605.5,2605.4,7.67628]
[1723875042915,1.32482986,2605.5,2605.4,7.67628]
[1723875044216,0.11566918,2605.5,2605.4,7.67628]
[1723875044506,1.32482986,2605.5,2605.4,7.67628]
[1723875048038,1.32482986,2605.5,2605.4,3.8381]
[1723875048755,0.11566918,2605.5,2605.4,3.8381]
[1723875048946,1.32482986,2605.5,2605.4,3.8381]
[1723875050230,0.11566918,2605.5,2605.4,3.8381]
[1723875050770,1.32482986,2605.5,2605.4,3.8381]
[1723875055631,0.11566918,2605.5,2605.4,3.8381]
[1723875056086,1.32596612,2605.5,2605.4,3.8381]
[1723875056569,3.59576612,2605.5,2605.4,3.8381]
[1723875056733,3.99498499,2605.5,2605.4,3.8381]
[1723875062208,1.72518499,2605.5,2605.4,3.8381]
[1723875064095,0.11566918,2605.5,2605.4,3.8381]
[1723875064298,1.32592949,2605.5,2605.4,3.8381]
[1723875068067,1.72518499,2605.5,2605.4,3.8381]
[1723875068273,1.32594174,2605.5,2605.4,3.8381]
[1723875068584,0.11566918,2605.5,2605.4,3.8381]
[1723875068792,1.32590891,2605.5,2605.4,3.8381]
[1723875071723,0.11566918,2605.5,2605.4,3.8381]
[1723875071923,1.32590891,2605.5,2605.4,3.8381]
[1723875072600,0.92251646,2605.5,2605.4,10.08208]
[1723875072840,0.11566918,2605.5,2605.4,10.08208]
[1723875073301,0.92251035,2605.5,2605.4,10.08208]
[1723875073736,0.11566918,2605.5,2605.4,10.08208]
[1723875075002,1.32590891,2605.5,2605.4,10.08208]
[1723875075501,0.11566918,2605.5,2605.4,10.08208]
[1723875075704,1.32590891,2605.5,2605.4,10.08208]
[1723875075902,0.11566918,2605.5,2605.4,10.08208]
[1723875076299,1.32590891,2605.5,2605.4,10.08208]
[1723875076911,0.11566918,2605.5,2605.4,10.08208]
[1723875077627,0.92249706,2605.5,2605.4,10.08208]
[1723875084139,0.11566918,2605.5,2605.4,10.08208]
[1723875084636,0.92243969,2605.5,2605.4,10.08208]
[1723875087639,0.11566918,2605.5,2605.4,10.08208]
[1723875090981,1.32590891,2605.5,2605.4,7.67628]
[1723875092939,0.11566918,2605.5,2605.4,7.67628]
[1723875093370,1.32590891,2605.5,2605.4,7.67628]
[1723875093681,1.32590891,2605.5,2605.4,3.8381]
[1723875093899,1.32590891,2605.5,2605.4,7.67628]
[1723875094842,0.92242613,2605.5,2605.4,7.67628]
[1723875095154,0.92240309,2605.5,2605.4,10.67628]
[1723875100790,0.11566918,2605.5,2605.4,10.67628]
[1723875103823,0.92240571,2605.5,2605.4,10.67628]
[1723875104187,0.92130571,2605.5,2605.4,10.67628]
[1723875105401,1.32480891,2605.5,2605.4,10.67628]
[1723875106316,0.11456918,2605.5,2605.4,10.67628]
[1723875107040,0.92135129,2605.5,2605.4,10.67628]
[1723875107236,0.11456918,2605.5,2605.4,10.67628]
[1723875108002,0.92138729,2605.5,2605.4,10.67628]
[1723875108243,0.92138729,2605.5,2605.4,13.08658]
[1723875109103,0.11456918,2605.5,2605.4,13.08658]
[1723875109507,0.92138729,2605.5,2605.4,13.08658]
[1723875110140,0.11456918,2605.5,2605.4,14.42165041]
[1723875110639,0.92138729,2605.5,2605.4,13.08658]
[1723875110826,0.11456918,2605.5,2605.4,14.42163523]
[1723875111337,0.11456918,2605.5,2605.4,14.42165004]
[1723875113869,0.11456918,2605.5,2605.4,14.42165377]
[1723875114370,0.11456918,2605.5,2605.4,14.42165534]
[1723875115648,0.11456918,2605.5,2605.4,27.18799461]
[1723875115831,0.10276955,2605.5,2605.4,30.26075335]
[1723875116174,0.80681811,2606.2,2606.1,3.83702]
[1723875116337,0.80681811,2606.3,2606.2,3.837]
[1723875116537,1.21023973,2606.4,2606.3,3.83685]
[1723875117380,1.21023973,2606.5,2606.4,3.8367]
[1723875117688,0.80558215,2606.5,2606.4,7.6734]
[1723875117835,0.80558215,2606.8,2606.5,3.83656]
[1723875118030,0.80558215,2607.0,2606.6,8.16536]
[1723875118434,0.80558215,2607.2,2607.1,3.83567]
[1723875118742,0.80558215,2607.3,2607.1,3.83567]
[1723875119276,4.08420063,2607.4,2607.1,3.83567]
[1723875119853,4.08420063,2607.4,2607.2,3.83543]
[1723875120049,2.4206,2607.4,2607.3,3.83538]
[1723875120612,2.53923973,2607.6,2607.4,3.83512]
[1723875120613,3.22618215,2607.6,2607.4,3.83512]
[1723875120906,2.4206,2607.6,2607.4,3.83512]
[1723875121111,4.55518215,2607.6,2607.4,3.83512]
[1723875121296,5.13180619,2607.6,2607.4,3.83512]
[1723875121671,4.32622404,2607.6,2607.4,3.83512]
[1723875123499,0.09015139,2607.5,2607.4,3.83512]
[1723875123915,0.09015139,2607.5,2607.4,7.67035]
[1723875124116,0.00081849,2607.8,2607.7,3.83479]
[1723875125902,0.09107952,2607.8,2607.7,3.83479]
[1723875133837,3.75917952,2607.8,2607.7,3.83479]
[1723875134693,3.75917952,2607.8,2607.6,3.83486]
[1723875135023,4.13509747,2607.8,2607.6,3.83486]
[1723875137645,4.13509747,2607.8,2607.4,10.67027]
[1723875137847,4.13509747,2607.8,2607.4,6.83509]
[1723875138174,1.329,2607.6,2607.4,10.67024]
[1723875138542,2.42936167,2607.5,2607.3,3.83533]
[1723875138982,2.42936167,2607.5,2607.2,3.83544]
[1723875139182,2.84654881,2607.5,2607.2,3.83544]
[1723875139479,2.84654881,2607.5,2607.2,7.67088]
[1723875139932,2.84654881,2607.5,2607.3,3.83534]
[1723875140134,0.41755488,2607.4,2607.3,3.83534]
[1723875140427,0.50779947,2607.4,2607.3,3.83534]
[1723875141345,0.09024459,2607.4,2607.3,3.83534]
[1723875142246,0.09024459,2607.4,2607.3,7.67072]
[1723875142431,19.62,2607.7,2607.6,3.83494]
[1723875143003,19.71029581,2607.7,2607.6,3.83494]
[1723875143208,22.32695013,2607.7,2607.6,3.83494]
[1723875147676,2.70695013,2607.7,2607.6,3.83494]
[1723875147886,0.09029581,2607.7,2607.6,3.83494]
[1723875148078,1.32981849,2607.8,2607.6,3.83494]
[1723875148705,0.08840032,2607.7,2607.6,3.83494]
[1723875149384,1.32981849,2607.8,2607.6,3.83494]
[1723875149601,0.08840032,2607.7,2607.6,3.83494]
[1723875149765,0.4641322,2607.7,2607.6,3.83494]
[1723875152440,0.4641322,2607.7,2607.4,3.83513]
[1723875152806,0.4641322,2607.7,2607.5,3.835]
[1723875153031,0.08840032,2607.7,2607.6,3.83494]
[1723875153407,1.32981849,2607.8,2607.6,3.83494]
[1723875153605,0.08840562,2607.7,2607.6,3.83494]
[1723875153941,1.32981849,2607.8,2607.6,3.83494]
[1723875154127,0.08840562,2607.7,2607.6,3.83494]
[1723875154333,3.65871034,2607.8,2607.6,3.83494]
[1723875154543,0.08840562,2607.7,2607.6,3.83494]
[1723875154851,3.65871034,2607.8,2607.6,3.83494]
[1723875155153,0.08840562,2607.7,2607.6,3.83494]
[1723875155360,3.65871034,2607.8,2607.6,3.83494]
[1723875155516,0.08840562,2607.7,2607.6,3.83494]
[1723875155714,3.65871034,2607.8,2607.6,3.83494]
[1723875155914,0.68818665,2607.7,2607.6,3.83494]
[1723875158258,0.08840562,2607.7,2607.6,3.83494]
[1723875158616,3.65871034,2607.8,2607.6,3.83494]
[1723875158951,0.08840962,2607.7,2607.6,3.83494]
[1723875159164,3.65871034,2607.8,2607.6,3.83494]
[1723875159165,1.32981849,2607.8,2607.6,3.83494]
[1723875159324,0.08840962,2607.7,2607.6,3.83494]
[1723875159527,1.32981849,2607.8,2607.6,3.83494]
[1723875159724,0.08840962,2607.7,2607.6,3.83494]
[1723875160045,1.32981849,2607.8,2607.6,3.83494]
[1723875160253,0.08840962,2607.7,2607.6,3.83494]
[1723875160542,2.13540064,2607.8,2607.6,3.83494]
[1723875160747,0.08840962,2607.7,2607.6,3.83494]
[1723875161041,2.13540064,2607.8,2607.6,3.83494]
[1723875161215,0.89399177,2607.7,2607.6,3.83494]
[1723875161417,0.08840962,2607.7,2607.6,3.83494]
[1723875161617,0.89249616,2607.7,2607.6,3.83494]
[1723875161840,0.80408654,2607.7,2607.6,3.83494]
[1723875162072,0.89250149,2607.7,2607.6,3.83494]
[1723875162273,1.29865468,2607.7,2607.6,3.83494]
[1723875163141,1.69793076,2607.7,2607.6,3.83494]
[1723875164036,1.29648846,2607.7,2607.6,3.83494]
[1723875164237,0.08841495,2607.7,2607.6,3.83494]
[1723875164564,1.6103343,2607.8,2607.7,3.83479]
[1723875164966,1.6103343,2607.8,2607.6,3.83494]
[1723875164967,4.0553343,2607.8,2607.6,3.83494]
[1723875165280,1.97338115,2607.7,2607.6,3.83494]
[1723875165439,1.61132614,2607.7,2607.6,3.83494]
[1723875167180,1.61214463,2607.8,2607.7,3.83479]
[1723875167540,1.61132614,2607.8,2607.7,3.83398545]
[1723875167753,2.10686249,2607.8,2607.7,3.83398545]
[1723875170162,6.20385518,2607.8,2607.4,3.83512]
[1723875170361,1.20867848,2607.5,2607.4,3.83512]
[1723875170562,1.20867848,2607.5,2607.4,6.83512]
[1723875170972,1.29706621,2607.5,2607.4,6.83512]
[1723875173388,0.08838773,2607.5,2607.4,6.83512]
[1723875174007,1.29718,2607.5,2607.4,6.83512]
[1723875174383,0.08838773,2607.5,2607.4,6.83512]
[1723875174590,0.08838773,2607.5,2607.4,9.30312]
[1723875174913,0.08838773,2607.5,2607.4,13.13835]
[1723875175607,1.29721054,2607.5,2607.4,13.13835]
[1723875176592,1.29721054,2607.5,2607.4,6.83512]
[1723875176797,1.58807696,2607.5,2607.4,6.83512]
[1723875177001,0.37925415,2607.5,2607.4,6.83512]
[1723875177399,1.58823951,2607.5,2607.4,6.83512]
[1723875177719,2.3651,2607.4,2606.9,2.468]
[1723875177920,0.80608538,2607.0,2606.9,3.83597]
[1723875178211,0.80608538,2607.0,2606.7,2.468]
[1723875178212,0.89439978,2607.0,2606.7,2.468]
[1723875178833,0.89439978,2607.0,2606.9,3.83594]
[1723875178992,0.89439978,2607.0,2606.9,7.67191]
[1723875179179,0.08829144,2607.0,2606.9,10.67191]
[1723875179818,0.08829144,2607.0,2606.9,13.13991]
[1723875180286,0.89439978,2607.0,2606.9,13.13991]
[1723875182424,0.89439978,2607.0,2606.9,10.67191]
[1723875182727,0.08829144,2607.0,2606.9,10.67191]
[1723875183715,0.89439978,2607.0,2606.9,10.67191]
[1723875184394,0.08829144,2607.0,2606.9,10.67191]
[1723875185937,0.89439978,2607.0,2606.9,10.67191]
[1723875186149,0.08829144,2607.0,2606.9,10.67191]
[1723875186308,0.89439978,2607.0,2606.9,10.67191]
[1723875186849,0.08829144,2607.0,2606.9,10.67191]
[1723875187001,0.89439978,2607.0,2606.9,10.67191]
[1723875187420,0.08829144,2607.0,2606.9,10.67191]
[1723875190445,2.2844,2606.9,2606.7,3.83614]
[1723875190644,1.20916243,2606.8,2606.7,7.67227]
[1723875190840,1.97063279,2606.8,2606.5,3.83655]
[1723875191064,0.80531614,2606.6,2606.5,3.83655]
[1723875191398,0.08811252,2606.6,2606.5,3.83655]
[1723875192058,0.08811252,2606.6,2606.5,6.83655]
[1723875193632,1.47858252,2606.8,2606.6,3.83633]
[1723875193961,0.08809895,2606.7,2606.6,3.83633]
[1723875194255,1.47858252,2606.8,2606.6,3.83633]
[1723875194256,1.47858252,2606.8,2606.6,6.83633]
[1723875194431,0.08809895,2606.7,2606.6,3.83633]
[1723875194628,3.08971614,2606.9,2606.6,3.0]
[1723875194861,0.08811603,2606.8,2606.7,7.67252]
[1723875195219,0.80531614,2607.0,2606.9,3.83597]
[1723875195421,0.89340903,2607.0,2606.9,3.83597]
[1723875199328,0.08809289,2607.0,2606.9,3.83597]
[1723875199526,0.08809289,2607.0,2606.9,7.67194]
[1723875200126,0.89340903,2607.0,2606.9,7.67194]
[1723875200326,0.08809289,2607.0,2606.9,7.67194]
[1723875201034,0.89340903,2607.0,2606.9,7.67194]
[1723875201442,0.08809289,2607.0,2606.9,7.67194]
[1723875204226,0.89340903,2607.0,2606.9,7.67194]
[1723875204978,0.08809289,2607.0,2606.9,3.83597]
[1723875206225,2.2844,2606.9,2606.7,3.83625]
[1723875206430,0.08807607,2606.8,2606.7,3.83625]
[1723875209982,0.08807607,2606.8,2606.6,3.83632]
[1723875210183,0.57307101,2606.8,2606.6,7.67265]
[1723875211145,0.57307101,2606.8,2606.7,3.83626]
[1723875211578,0.57307101,2606.8,2606.6,3.83632]
[1723875211879,1.37838715,2606.8,2606.6,7.67265]
[1723875212255,1.37838715,2606.8,2606.6,3.83632]
[1723875212468,0.49917872,2606.7,2606.6,3.83632]
[1723875212780,0.49917872,2606.7,2606.6,6.83632]
[1723875212932,0.5872617,2606.7,2606.6,6.83632]
[1723875213129,0.08808298,2606.7,2606.6,6.83632]
[1723875213329,1.29031108,2606.8,2606.6,6.83632]
[1723875213763,0.08808298,2606.7,2606.6,6.83632]
[1723875214143,1.29031108,2606.8,2606.6,6.83632]
[1723875214357,0.08808298,2606.7,2606.6,6.83632]
[1723875214562,1.29031108,2606.8,2606.6,6.83632]
[1723875214751,0.08808298,2606.7,2606.6,6.83632]
[1723875215093,1.29031108,2606.8,2606.6,6.83632]
[1723875215287,0.08808298,2606.7,2606.6,6.83632]
[1723875215593,1.29031108,2606.8,2606.6,6.83632]
[1723875215783,0.08808298,2606.7,2606.6,6.83632]
[1723875215985,1.29031108,2606.8,2606.6,6.83632]
[1723875216159,0.08808298,2606.7,2606.6,6.83632]
[1723875216360,1.29031108,2606.8,2606.6,6.83632]
[1723875216558,0.08808298,2606.7,2606.6,6.83632]
[1723875216969,0.08805631,2606.7,2606.6,6.83632]
[1723875217179,1.29031108,2606.8,2606.6,6.83632]
[1723875217377,0.08805631,2606.7,2606.6,6.83632]
[1723875217593,1.29031108,2606.8,2606.6,6.83632]
[1723875217747,0.08805631,2606.7,2606.6,6.83632]
[1723875218399,1.29031108,2606.8,2606.6,6.83632]
[1723875218604,0.08805631,2606.7,2606.6,6.83632]
[1723875218901,1.29031108,2606.8,2606.7,3.83626]
[1723875220651,1.29031108,2606.8,2606.6,3.0]
[1723875220652,1.28975278,2606.8,2606.6,3.0]
[1723875220955,1.94028735,2606.7,2606.6,3.0]
[1723875221366,3.14944978,2606.7,2606.5,3.83642]
[1723875221563,0.80493585,2606.6,2606.5,3.83642]
[1723875221893,1.41001927,2606.6,2606.4,3.83663]
[1723875222091,1.329,2606.5,2606.4,3.83663]
[1723875222394,2.13396478,2606.5,2606.4,3.83663]
[1723875223393,2.80549232,2606.5,2606.4,3.83663]
[1723875223579,2.00052754,2606.5,2606.4,3.83663]
[1723875224499,1.47673828,2606.5,2606.4,3.83663]
[1723875224857,1.88068997,2606.5,2606.4,3.83663]
[1723875225500,0.67152754,2606.5,2606.4,3.83663]
[1723875225923,1.47671172,2606.5,2606.4,3.83663]
[1723875226440,0.67152754,2606.5,2606.4,3.83663]
[1723875226623,4.10574585,2606.6,2606.4,3.83663]
[1723875226788,0.80513041,2606.5,2606.4,3.83663]
[1723875227218,4.10574585,2606.6,2606.4,3.83663]
[1723875227427,0.80509284,2606.5,2606.4,3.83663]
[1723875227622,4.10574585,2606.6,2606.4,3.83663]
[1723875228024,1.20916243,2606.5,2606.4,3.83663]
[1723875230310,1.97491112,2606.5,2606.4,3.83663]
[1723875231047,2.0628236,2606.5,2606.4,3.83663]
[1723875232547,1.29707491,2606.5,2606.4,3.83663]
[1723875233234,0.89307353,2606.5,2606.4,3.83663]
[1723875233398,0.89312168,2606.5,2606.4,3.83663]
[1723875233799,2.49551248,2606.5,2606.4,3.83663]
[1723875234112,3.70467491,2606.5,2606.4,3.83663]
[1723875235935,0.08791248,2606.5,2606.4,3.83663]
[1723875236137,1.29707491,2606.5,2606.4,3.83663]
[1723875243247,3.18172151,2606.5,2606.2,3.83688]
[1723875243547,2.53706721,2606.4,2606.2,3.83688]
[1723875243900,0.08788234,2606.3,2606.2,3.83688]
[1723875244148,0.08788234,2606.3,2606.2,6.83688]
[1723875244450,1.29594955,2606.3,2606.2,3.83688]
[1723875245560,0.89320635,2606.3,2606.2,3.83688]
[1723875246123,0.08788234,2606.3,2606.2,3.83688]
[1723875247944,0.8931962,2606.3,2606.2,3.83688]
[1723875248553,0.08788234,2606.3,2606.2,3.83688]
[1723875249059,2.02897077,2606.3,2606.0,3.83721]
[1723875249216,2.02897077,2606.3,2605.4,0.80453694]
[1723875249217,5.04523721,2606.1,2605.6,3.83779]
[1723875249423,5.25135366,2606.2,2605.6,3.83779]
[1723875249424,0.80528982,2605.8,2605.6,3.83779]
[1723875249722,0.89300561,2605.7,2605.6,3.83779]
[1723875250557,0.89300561,2605.7,2605.5,3.83803]
[1723875253236,0.89300561,2605.7,2605.4,3.83816]
[1723875253422,1.85084989,2605.7,2605.3,7.67641]
[1723875254115,1.85084989,2605.7,2605.4,3.83816]
[1723875254316,0.89300561,2605.7,2605.5,2.2814]
[1723875254516,0.08771579,2605.7,2605.6,3.83788]
[1723875255061,0.0875627,2605.7,2605.6,3.83788]
[1723875255264,0.80528982,2605.9,2605.6,3.83788]
[1723875255422,0.0875798,2605.8,2605.6,3.83788]
[1723875259764,1.4165798,2605.8,2605.6,3.83788]
[1723875260824,1.4165798,2605.8,2605.4,7.67621]
[1723875261160,0.53817911,2605.7,2605.4,7.67621]
[1723875261318,0.53817911,2605.7,2605.4,3.83805]
[1723875261522,0.08755761,2605.6,2605.5,3.83803]
[1723875264252,0.08755761,2605.6,2605.3,6.11959]
[1723875264634,0.08755761,2605.6,2605.4,3.83817]
[1723875265266,0.08755761,2605.6,2605.3,6.11959]
[1723875265569,1.69256026,2605.6,2605.3,3.83819]
[1723875267337,4.80875008,2605.6,2605.3,3.83819]
[1723875267869,4.00346026,2605.6,2605.3,3.83819]
[1723875268030,0.53469292,2605.5,2605.3,3.83819]
[1723875268231,0.08738927,2605.4,2605.3,3.83819]
[1723875270232,0.08738927,2605.4,2605.1,3.83856]
[1723875270439,0.08738927,2605.4,2605.1,7.6771]
[1723875271079,0.08738927,2605.4,2605.2,3.83846]
[1723875274242,0.08738927,2605.4,2605.2,6.26326]
[1723875274455,1.60500265,2605.6,2605.2,6.26326]
[1723875274665,0.08742267,2605.5,2605.4,3.83818]
[1723875274895,22.87128982,2605.8,2605.4,3.83818]
[1723875274896,21.75428982,2605.8,2605.4,3.83818]
[1723875275080,0.08737948,2605.5,2605.4,3.83818]
[1723875275285,21.75428982,2605.8,2605.4,3.83818]
[1723875275466,0.08741368,2605.7,2605.5,3.83801]
[1723875275670,19.62,2605.7,2605.5,6.26281]
[1723875275871,0.08739792,2605.6,2605.5,6.26281]
[1723875282019,0.08739792,2605.6,2605.5,3.83801]
[1723875283527,0.08739792,2605.6,2605.4,3.83818]
[1723875287886,0.89268774,2605.6,2605.4,3.83818]
[1723875290733,0.89268774,2605.6,2605.5,3.83803]
[1723875291622,0.89268774,2605.6,2605.5,10.12946]
[1723875291796,0.08739792,2605.6,2605.5,11.142406]
[1723875294415,0.08739792,2605.6,2605.5,10.12946]
[1723875294416,0.89268774,2605.6,2605.5,10.12946]
[1723875300412,1.29546513,2605.6,2605.5,10.12946]
[1723875300927,1.29546513,2605.6,2605.1,2.4534]
[1723875301212,2.53833154,2605.4,2605.2,3.83847]
[1723875301425,1.29568762,2605.3,2605.2,3.83847]
[1723875301831,1.29568762,2605.3,2605.1,3.0]
[1723875302130,0.80625594,2605.2,2605.1,3.0]
[1723875302310,0.80625594,2605.2,2605.1,6.83862]
[1723875302512,0.89257756,2605.2,2605.1,6.83862]
[1723875302937,0.08632162,2605.2,2605.1,10.67724]
[1723875303303,0.80625594,2605.4,2605.3,3.83832]
[1723875303737,1.20933154,2605.4,2605.3,3.83832]
[1723875303909,0.80614774,2605.4,2605.3,3.83832]
[1723875304110,1.20933154,2605.5,2605.3,3.83832]
[1723875304848,1.20933154,2605.4,2605.3,3.83832]
[1723875305509,1.20933154,2605.5,2605.3,3.83832]
[1723875306104,0.08633971,2605.4,2605.3,3.83832]
[1723875306609,1.29567125,2605.4,2605.3,3.83832]
[1723875306809,0.89250412,2605.4,2605.3,3.83832]
[1723875307247,0.89250412,2605.4,2605.3,7.67664]
[1723875310838,0.08633971,2605.4,2605.3,7.67664]
[1723875311045,0.08633971,2605.4,2605.3,12.98924]
[1723875311314,19.62,2605.7,2605.6,9.98836]
[1723875311526,0.80616441,2605.9,2605.6,5.3126]
[1723875311846,0.80616441,2606.0,2605.9,3.83744]
[1723875312056,0.80616441,2606.0,2605.9,4.604932]
[1723875312256,0.80616441,2606.0,2605.9,3.83744]
[1723875313216,1.20933154,2606.0,2605.9,3.83744]
[1723875314122,0.80565347,2606.0,2605.9,3.83744]
[1723875314440,0.80556023,2606.0,2605.9,3.83744]
[1723875315315,0.80556074,2606.0,2605.9,3.83744]
[1723875316367,0.80556074,2606.0,2605.9,10.754972]
[1723875316659,1.20933154,2606.4,2606.2,3.837]
[1723875316829,2.53833154,2606.4,2606.2,3.837]
[1723875318423,1.329,2606.4,2606.3,3.83685]
[1723875320126,1.20933154,2606.5,2606.3,3.83685]
[1723875320333,2.53833154,2606.5,2606.3,3.83685]
[1723875321074,0.08659679,2606.4,2606.3,3.83685]
[1723875329637,0.08659679,2606.4,2606.1,7.6742]
[1723875329847,0.08659679,2606.4,2605.9,6.080092]
[1723875329848,1.329,2606.3,2605.9,7.604832]
[1723875330043,1.329,2606.3,2605.9,6.83734]
[1723875330285,0.0836435,2606.2,2606.0,3.83728]
[1723875330591,1.329,2606.3,2606.0,3.83728]
[1723875330812,0.08362641,2606.1,2606.0,3.83728]
[1723875330968,1.329,2606.3,2606.0,3.83728]
[1723875331187,0.08362641,2606.1,2606.0,3.83728]
[1723875331342,1.329,2606.3,2606.0,3.83728]
[1723875331545,0.08373955,2606.2,2606.0,3.83728]
[1723875331847,1.329,2606.3,2606.0,3.83728]
[1723875332043,0.11954787,2606.1,2606.0,3.83728]
[1723875332291,1.329,2606.3,2606.0,3.83728]
[1723875332846,0.11954302,2606.2,2606.0,3.83728]
[1723875333186,1.329,2606.3,2606.0,3.83728]
[1723875333382,0.11954787,2606.1,2606.0,3.83728]
[1723875333586,1.329,2606.3,2606.0,3.83728]
[1723875333751,0.11954787,2606.1,2606.0,3.83728]
[1723875334088,1.329,2606.3,2606.0,3.83728]
[1723875334490,1.329,2606.3,2605.9,6.83734]
[1723875334702,0.11916693,2606.2,2605.9,6.83734]
[1723875335053,1.329,2606.3,2605.9,6.83734]
[1723875335592,0.11916693,2606.2,2605.9,10.67468]
[1723875335743,0.11916693,2606.2,2605.9,10.67471]
[1723875335943,1.329,2606.3,2605.9,10.6747]
[1723875336155,0.11916693,2606.2,2605.9,10.6747]
[1723875336385,1.329,2606.3,2605.9,10.6747]
[1723875337097,0.11917453,2606.2,2605.9,6.83734]
[1723875337244,7.44206,2606.1,2605.6,3.83774]
[1723875337599,1.329,2605.9,2605.6,3.83774]
[1723875338087,0.11909031,2605.8,2605.6,3.83774]
[1723875343591,2.39489031,2605.8,2605.6,3.83774]
[1723875343792,2.39489031,2605.8,2605.5,3.83801]
[1723875346514,1.329,2605.7,2605.3,3.83829]
[1723875346771,0.11900283,2605.6,2605.3,3.83829]
[1723875347880,0.11900283,2605.6,2605.2,3.83838]
[1723875348399,0.11900283,2605.6,2605.2,7.67677]
[1723875348571,0.11900283,2605.6,2605.2,3.83838]
[1723875348774,0.11900283,2605.6,2605.2,7.67677]
[1723875349716,0.11900283,2605.6,2605.3,3.83831]
[1723875350476,0.11900283,2605.6,2605.1,3.83849]
[1723875350477,1.329,2605.5,2605.1,3.83849]
[1723875350913,0.11893562,2605.4,2605.1,3.83849]
[1723875351279,0.11893562,2605.4,2605.2,3.83835]
[1723875355925,0.11893562,2605.4,2605.3,3.83832]
[1723875358233,0.11893562,2605.4,2605.3,10.00384]
[1723875358588,20.949,2605.7,2605.4,3.83804]
[1723875358789,0.11845016,2605.6,2605.5,3.83803]
[1723875362548,1.329,2605.8,2605.6,3.83787]
[1723875364649,1.329,2605.8,2605.4,3.83805]
[1723875366050,0.11845365,2605.7,2605.5,3.83801]
[1723875366249,0.11845365,2605.7,2605.6,3.83788]
[1723875366575,1.329,2605.8,2605.4,3.83805]
[1723875366576,1.329,2605.8,2605.5,3.83803]
[1723875366753,0.11845632,2605.7,2605.5,3.83803]
[1723875367252,0.11844059,2605.6,2605.5,3.83803]
[1723875367626,1.329,2605.8,2605.5,3.83803]
[1723875367814,0.11844059,2605.6,2605.5,3.83803]
[1723875368159,1.329,2605.8,2605.5,3.83803]
[1723875368320,0.11844059,2605.6,2605.5,3.83803]
[1723875368519,1.329,2605.8,2605.5,3.83803]
[1723875368721,0.11844059,2605.6,2605.5,3.83803]
[1723875369249,1.329,2605.8,2605.5,3.83803]
[1723875369459,0.11844059,2605.6,2605.5,3.83803]
[1723875369668,2.53833154,2605.8,2605.5,3.83803]
[1723875369828,0.11844059,2605.6,2605.5,3.83803]
[1723875370030,2.53833154,2605.8,2605.5,3.83803]
[1723875370228,0.11844059,2605.6,2605.5,3.83803]
[1723875370429,2.53833154,2605.8,2605.5,3.83803]
[1723875370672,0.11844059,2605.6,2605.5,3.83803]
[1723875370845,2.53833154,2605.8,2605.5,3.83803]
[1723875371163,2.53833154,2605.8,2605.6,3.83787]
[1723875371374,0.11845632,2605.7,2605.6,3.83787]
[1723875371732,0.11846165,2605.7,2605.6,3.83787]
[1723875371968,1.329,2605.8,2605.6,3.83787]
[1723875372272,0.11846165,2605.7,2605.6,3.83787]
[1723875372772,1.329,2605.8,2605.6,3.83787]
[1723875373068,0.11846299,2605.7,2605.6,3.83787]
[1723875373231,20.82933154,2605.9,2605.7,3.8377]
[1723875373545,2.53833154,2606.0,2605.7,3.8377]
[1723875374054,3.51683154,2605.9,2605.5,7.67589]
[1723875374263,1.329,2605.8,2605.5,7.67589]
[1723875374457,1.329,2605.8,2605.6,3.83786]
[1723875376079,1.329,2605.8,2605.5,3.83794]
[1723875376614,2.53833154,2605.8,2605.5,3.83794]
[1723875379313,1.20933154,2605.7,2605.5,3.83794]
[1723875379721,2.53833154,2605.8,2605.5,3.83794]
[1723875380985,0.11850753,2605.7,2605.5,3.83794]
[1723875381193,2.53833154,2605.8,2605.5,3.83794]
[1723875381413,0.11850753,2605.7,2605.5,3.83794]
[1723875381726,1.20933154,2605.7,2605.5,3.83794]
[1723875382035,0.1184918,2605.6,2605.5,3.83794]
[1723875383829,0.1184918,2605.6,2605.5,10.79528]
[1723875383997,0.1184918,2605.6,2605.5,10.02767]
[1723875384197,21.23145366,2605.9,2605.8,3.83759]
[1723875384403,20.94774114,2605.9,2605.8,3.83759]
[1723875385349,20.94768674,2605.9,2605.8,3.83759]
[1723875385537,19.73854964,2605.9,2605.8,3.83759]
[1723875385695,20.94769328,2605.9,2605.8,3.83759]
[1723875386586,19.73854964,2605.9,2605.8,6.18929]
[1723875386790,19.73854964,2605.9,2605.8,11.029582]
[1723875386998,0.11854964,2605.9,2605.8,11.029582]
[1723875387222,1.61145366,2606.2,2605.8,11.029582]
[1723875387223,1.20914364,2606.2,2606.0,3.83718]
[1723875387428,21.23145366,2606.3,2606.2,3.837]
[1723875387429,20.82914364,2606.3,2606.2,3.837]
[1723875388530,19.62,2606.3,2606.2,3.837]
[1723875396122,19.73817201,2606.3,2606.2,3.837]
[1723875396322,19.73817201,2606.3,2606.2,6.1001]
[1723875399420,19.73817201,2606.3,2606.2,3.837]
[1723875406739,19.73817201,2606.3,2606.2,7.674]
[1723875406967,19.73817201,2606.3,2606.2,10.93081]
[1723875407171,0.11817201,2606.3,2606.2,10.93081]
[1723875407693,1.20914364,2606.8,2606.6,3.83638]
[1723875408247,2.53814364,2606.9,2606.6,3.83638]
[1723875408771,1.329,2606.7,2606.5,3.83648]
[1723875409079,1.329,2606.7,2606.6,3.83641]
[1723875409287,2.53814364,2606.9,2606.6,3.83641]
[1723875409586,3.57735937,2606.9,2606.6,3.83633]
[1723875411149,0.11746017,2606.8,2606.6,3.83633]
[1723875412449,0.11746017,2606.8,2606.6,10.05106]